[Event "17th Paracin Open 2024"]
[Site "Paracin"]
[Date "2024.07.04"]
[Round "2.18"]
[White "Eren, Ataberk"]
[Black "Ashvath Mittal"]
[Result "1-0"]
[ECO "D12"]
[WhiteElo "2407"]
[BlackElo "1986"]
[Annotator "TA"]
[PlyCount "75"]
[EventDate "2024.07.02"]
[EventType "swiss"]
[EventCountry "SRB"]
[SourceTitle "playchess.com"]
[Source "ChessBase"]
[SourceQuality "1"]
[TimeControl "5400+30"]

{[%evp 12,75,47,35,53,18,45,44,86,41,94,82,85,36,83,45,30,35,30,44,56,81,85,87,91,85,75,96,86,79,72,43,68,41,46,44,56,23,127,127,126,121,120,133,128,109,121,116,208,200,296,303,300,301,298,300,276,252,1036,1079,1079,1043,984,956,839,623]} 1. Nf3 {[%emt 0:02:34]} d5 {[%emt 0:00:08]} 2. c4 {[%emt 0:00:09]} c6 {[%emt 0:00:14]} 3. e3 {[%emt 0:00:16]} Nf6 {[%emt 0:00:16]} 4. Nc3 {[%emt 0:00:05]} Bf5 {[%emt 0:11:27]} 5. cxd5 {[%emt 0:00:25]} Nxd5 {[%emt 0:04:16]} 6. d4 {[%emt 0:05:02]} e6 {[%emt 0:02:17]} 7. Bc4 {[%emt 0:01:40]} Nd7 {[%emt 0:03:33][%cal Bb8d7,Bd7f6,Bf6e4][%mdl 32]} 8. O-O {[%emt 0:00:33]} N7f6 {[%emt 0:04:34]} 9. Ne5 {[%emt 0:09:10]} Bb4 {[%emt 0:09:31] White is slightly better.} 10. Bd2 {[%emt 0:04:49] Black must now prevent Nxd5.} Bxc3 {[%emt 0:01:48]} (10... Bd6 $14) 11. bxc3 $16 {[%emt 0:02:00]} Ne4 {[%emt 0:01:33]} 12. Be1 {[%emt 0:05:48]} (12. f3 $16 Nxd2 13. Qxd2) 12... O-O {[%emt 0:03:39]} (12... f6 $14 13. Nd3 a5) 13. Qb3 {[%emt 0:03:20]} f6 {[%emt 0:07:21]} 14. Nf3 {[%emt 0:04:30][%cal Of3h4]} b5 {[%emt 0:07:33]} 15. Be2 {[%emt 0:00:15]} g5 {[%emt 0:01:10] Prevents Nh4.} 16. Rc1 {[%emt 0:02:46]} Qd6 {[%emt 0:03:48] [#]} 17. Nd2 $1 {[%emt 0:04:24]} Nb6 {[%emt 0:09:36]} 18. f3 {[%emt 0:07:28]} Nxd2 {[%emt 0:00:04]} 19. Bxd2 {[%emt 0:00:03]} Bg6 {[%emt 0:02:16]} 20. Rfd1 {[%emt 0:04:31]} Bf7 {[%emt 0:01:21]} 21. Bd3 {[%emt 0:03:33]} h6 {[%emt 0:03:10]} 22. Be1 {[%emt 0:08:43]} e5 {[%emt 0:02:50]} 23. Qb1 {[%emt 0:02:10][%cal Oc3c4]} Qe6 {[%emt 0:02:11]} 24. dxe5 {[%emt 0:01:57]} (24. Bf5 {simplifies} Qxa2 25. dxe5 Qxb1 26. Rxb1 Rae8 27. Rd6) 24... Qxa2 {[%emt 0:03:41]} (24... Qxe5 $11 {remains equal.} 25. Be4 Qe6) 25. Bh7+ {[%emt 0:08:05]} ({Don't take} 25. exf6 $6 Qxb1 26. Rxb1 (26. Bxb1 Nc4 $14) 26... a5 $11) 25... Kh8 {[%emt 0:00:18] [#]} 26. Rd6 $1 {[%emt 0:00:45][%cal Bd1d6,Bd6e6,Be6e7][%mdl 32]} Qxb1 {[%emt 0:02:50]} 27. Bxb1 {[%emt 0:00:04]} Be8 {[%emt 0:01:02]} 28. exf6 {[%emt 0:01:20][%cal Of6f7] aiming for f7! White is more active.} ({Don't play} 28. Rxf6 Rxf6 29. exf6 Nc4) 28... Nc4 {[%emt 0:00:51][%csl LRd6,LRe3]} 29. Re6 $36 {[%emt 0:00:34][%mdl 2048] White is really pushing.} Rd8 {[%emt 0:01:46]} (29... a5 $16) 30. Bf2 $18 {[%emt 0:03:48]} Bd7 {[%emt 0:01:45]} (30... Na3 $142 31. e4 Nxb1) 31. Re7 {[%emt 0:00:07]} Rxf6 {[%emt 0:00:31]} 32. Rd1 {[%emt 0:04:32]} Rd6 {[%emt 0:00:03]} 33. Rxd6 {[%emt 0:00:07]} Nxd6 {[%emt 0:00:01]} 34. e4 {[%emt 0:00:36] Dodges Nf5} Nc8 {[%emt 0:02:14]} (34... Kg8 35. Ba2+ (35. Bxa7 Nc4 $18) 35... Nc4 36. Bxc4+ (36. Bxa7 Be8 $18) 36... bxc4 37. Bxa7 Be8) 35. Bd4+ {[%emt 0:00:09] White is clearly winning.} Kg8 {[%emt 0:00:19]} 36. Ba2+ {[%emt 0:00:05]} Kf8 {[%emt 0:00:04]} 37. Rf7+ {[%emt 0:00:12]} Ke8 {[%emt 0:00:11]} 38. Bc5 {[%emt 0:00:37] Weighted Error Value: White=0.11 (very precise) /Black=0.25 (precise) .  Mistake:       	White=1     	Black=6      Inaccurate:     	White=5     	Black=2      OK:         	White=9     	Black=8      Best:        	White=3     	Black=1      Strong:       	White=2     	---} 1-0

[Event "17th Paracin Open 2024"]
[Site "Paracin"]
[Date "2024.07.04"]
[Round "2.19"]
[White "Pasti, Aron"]
[Black "Vasilkov, Nikolay"]
[Result "0-1"]
[ECO "B83"]
[WhiteElo "2402"]
[BlackElo "2071"]
[Annotator "TA"]
[PlyCount "58"]
[EventDate "2024.07.02"]
[EventType "swiss"]
[EventCountry "SRB"]
[SourceTitle "playchess.com"]
[Source "ChessBase"]
[SourceQuality "1"]
[TimeControl "5400+30"]

{[%evp 16,58,10,6,30,0,0,-3,0,0,0,0,0,-14,-16,-21,-20,-4,-19,-42,-56,-171,-54,-109,-107,-392,-388,-613,-414,-418,-408,-408,-402,-397,-385,-378,-381,-375,-309,-312,-304,-293,-295,-337,-337]} 1. e4 {[%emt 1:31:00]} c5 {[%emt 1:31:00]} 2. Nf3 {[%emt 0:00:30]} e6 {[%emt 0:00:30]} 3. d4 {[%emt 0:00:30]} cxd4 {[%emt 0:00:30]} 4. Nxd4 {[%emt 0:00:30]} Nf6 {[%emt 0:00:30]} 5. Nc3 {[%emt 0:00:30]} Nc6 {[%emt 0:00:30]} 6. a3 {[%emt 0:00:30]} Be7 {[%emt 0:00:30]} 7. Be2 {[%emt 0:00:30]} O-O {[%emt 0:00:30]} 8. O-O {[%emt 0:00:30]} d6 {[%emt 0:00:30]} 9. Be3 {[%emt 0:00:30]} Qc7 {[%emt 0:00:30]} 10. f3 {[%emt 0:00:30]} a6 {[%emt 0:00:30]} 11. Qe1 {[%emt 0:00:30]} Nxd4 {[%emt 0:00:30] The position is equal.} 12. Bxd4 {[%emt 0:00:30]} e5 {[%emt 0:00:30]} 13. Be3 {[%emt 0:00:30]} Be6 {[%emt 0:00:30]} 14. f4 {[%emt 0:00:30]} exf4 {[%emt 0:00:30]} 15. Rxf4 {[%emt 0:00:30]} d5 {[%emt 0:00:30]} 16. exd5 {[%emt 0:00:30]} Nxd5 {[%emt 0:00:30]} 17. Nxd5 {[%emt 0:00:30]} Bxd5 {[%emt 0:00:30]} 18. Bd3 {[%emt 0:00:30]} (18. Rd4 $15 Bc6 19. Bd3) 18... Rae8 {[%emt 0:00:30]} (18... Rfe8 $19 {Strongly threatening ...Bc5.} 19. Be4 Bd6) 19. Qg3 {[%emt 0:00:30]} (19. Rd4 $1 $15 Bc5 20. Qh4) 19... Bd6 $36 {[%emt 0:00:30][%mdl 2048] [#] ...Rxe3 is the strong threat. Black is really pushing.} 20. Bxh7+ $2 {[%emt 0:00:30][%mdl 8192] This costs White the game.} Kxh7 $19 {[%emt 0:00:30]} 21. Rh4+ {[%emt 0:00:30]} Kg8 {[%emt 0:00:30][%cal Bh7g8,Bg8f7,Bf7e6,Be6d6,Bd6c7][%mdl 32]} 22. Qh3 {[%emt 0:00:30][%csl Gh3][%cal Rh4h8]} f6 {[%emt 0:00:30][%cal Oe8e3]} (22... Qxc2 23. Rh8#) (22... Bxh2+ 23. Kh1 f6 24. Bb6 Bxg2+ (24... Qxb6 25. Rh8+ Kf7 26. Qd7+ Kg6 27. Qg4+ Kf7 28. Qd7+ Kg6 29. Qg4+ Kf7 30. Qd7+ $11) 25. Qxg2 Qxb6 26. Rxh2 $19) 23. Rh8+ {[%emt 0:00:30]} Kf7 {[%emt 0:00:30]} 24. Qh5+ {[%emt 0:00:30]} Ke6 {[%emt 0:00:30]} 25. Rxf8 {[%emt 0:00:30]} Rxf8 {[%emt 0:00:30]} 26. Re1 {[%emt 0:00:30] [#] Bb6+ would now be deadly.} Be5 {[%emt 0:00:30]} (26... Qxc2 27. Bf4+ Be4 28. Qg6 Qc5+ 29. Kh1 Bxf4 30. Qxe4+ Be5 31. Qxb7 $19) 27. Bd4 {[%emt 0:00:30] Black has a decisive advantage.} Qf7 {[%emt 0:00:30]} ({Weaker is} 27... Qxc2 28. Rxe5+ fxe5 29. Qxe5+ Kd7 30. Qxd5+ Kc7 31. Qe5+ (31. Bxg7 $2 {is a self mate.} Qf2+ 32. Kh1 Qf1#) 31... Kc6 32. Qe6+ (32. Qxg7 $2 Qd1#) 32... Kb5 33. Qb6+ (33. Bxg7 $2 Qf2+ 34. Kh1 Qf1#) 33... Kc4 34. Qb4+ (34. Bxg7 $2 Qd1#) 34... Kd5 35. Qxb7+ (35. Qxf8 Qd1+ 36. Kf2 Qxd4+ 37. Kf3 Qxb2 $11) 35... Qc6 36. Qxc6+ (36. Qxg7 $2 Qc1#) 36... Kxc6 37. Bxg7 $16) 28. Qg4+ {[%emt 0:00:30]} Kd6 {[%emt 0:00:30]} 29. Rd1 {[%emt 0:00:30][%cal Oc2c4]} Kc7 {[%emt 0:00:30] Weighted Error Value: White=0.48/Black=0.18 (very precise) .  Loses game:     	White=1     	---        Mistake:       	White=2     	Black=1      Inaccurate:     	White=1     	Black=1      OK:         	White=7     	Black=5      Best:        	---       	Black=1} 0-1

[Event "17th Paracin Open 2024"]
[Site "Paracin"]
[Date "2024.07.04"]
[Round "2.20"]
[White "Tippa, Aswath Srisai"]
[Black "Unsal, Gorkem"]
[Result "1-0"]
[ECO "B01"]
[WhiteElo "1647"]
[BlackElo "1969"]
[Annotator "NA RC"]
[PlyCount "85"]
[EventDate "2024.07.02"]
[EventType "swiss"]
[EventCountry "SRB"]
[SourceTitle "playchess.com"]
[Source "ChessBase"]
[SourceQuality "1"]
[TimeControl "5400+30"]

1. e4 {[%emt 1:31:00]} d5 {[%emt 1:31:00]} 2. exd5 {[%emt 0:00:30]} Qxd5 {[%emt 0:00:30]} 3. Nc3 {[%emt 0:00:30]} Qa5 {[%emt 0:00:30]} 4. d4 {[%emt 0:00:30]} Nf6 {[%emt 0:00:30]} 5. Nf3 {[%emt 0:00:30]} c6 {[%emt 0:00:30]} 6. Bc4 {[%emt 0:00:30]} Bf5 {[%emt 0:00:30]} 7. Ne5 {[%emt 0:00:30]} e6 {[%emt 0:00:30]} 8. g4 {[%emt 0:00:30]} Bg6 {[%emt 0:00:30]} 9. h4 {[%emt 0:00:30]} Nbd7 {[%emt 0:00:30]} 10. Nxd7 {[%emt 0:00:30]} Nxd7 {[%emt 0:00:30]} 11. h5 {[%emt 0:00:30]} Be4 {[%emt 0:00:30]} 12. O-O {[%emt 0:00:30]} Bd5 {[%emt 0:00:30]} 13. Nxd5 {[%emt 0:00:30]} cxd5 {[%emt 0:00:30]} 14. Bd3 {[%emt 0:00:30]} Bd6 {[%emt 0:00:30]} 15. Qf3 {[%emt 0:00:30]} h6 {[%emt 0:00:30]} 16. a4 {[%emt 0:00:30]} Rc8 {[%emt 0:00:30]} 17. Kg2 {[%emt 0:00:30]} Bb8 {[%emt 0:00:30]} 18. Be3 {[%emt 0:00:30]} Qd8 {[%emt 0:00:30]} 19. b3 {[%emt 0:00:30]} Qh4 {[%emt 0:00:30]} 20. Rh1 {[%emt 0:00:30]} Qf6 {[%emt 0:00:30]} 21. c4 {[%emt 0:00:30]} Qxf3+ {[%emt 0:00:30]} 22. Kxf3 {[%emt 0:00:30]} Nf6 {[%emt 0:00:30]} 23. c5 {[%emt 0:00:30]} e5 {[%emt 0:00:30]} 24. dxe5 {[%emt 0:00:30]} Bxe5 {[%emt 0:00:30]} 25. Rac1 {[%emt 0:00:30]} O-O {[%emt 0:00:30]} 26. b4 {[%emt 0:00:30]} Rfe8 {[%emt 0:00:30]} 27. Rhd1 {[%emt 0:00:30]} d4 {[%emt 0:00:30]} 28. Bd2 {[%emt 0:00:30]} Nd5 {[%emt 0:00:30]} 29. Be4 {[%emt 0:00:30]} Rcd8 {[%emt 0:00:30]} 30. Re1 {[%emt 0:00:30]} f6 {[%emt 0:00:30]} 31. b5 {[%emt 0:00:30]} Re7 {[%emt 0:00:30]} 32. Ba5 {[%emt 0:00:30]} b6 {[%emt 0:00:30]} 33. Bxd5+ {[%emt 0:00:30]} Rxd5 {[%emt 0:00:30]} 34. cxb6 {[%emt 0:00:30]} axb6 {[%emt 0:00:30]} 35. Bxb6 {[%emt 0:00:30]} Rb7 {[%emt 0:00:30]} 36. Rc6 {[%emt 0:00:30]} Rbd7 {[%emt 0:00:30]} 37. Rd1 {[%emt 0:00:30]} Kf7 {[%emt 0:00:30]} 38. Rd3 {[%emt 0:00:30]} g6 {[%emt 0:00:30]} 39. hxg6+ {[%emt 0:00:30]} Kxg6 {[%emt 0:00:30]} 40. Bc5 {[%emt 0:00:30]} Bd6 {[%emt 0:00:30]} 41. Bxd6 {[%emt 0:00:30]} R5xd6 {[%emt 0:00:30]} 42. Rxd6 {[%emt 0:00:30]} Rxd6 {[%emt 0:00:30]} 43. Ke4 {[%emt 0:00:30]} 1-0